[Event "*** Titled Tuesday Blitz"]
[Site "Chess.com"]
[Date "2019.03.05"]
[Round "1"]
[White "VeraNebolsina"]
[Black "Gabrielian_Artur"]
[Result "0-1"]
[WhiteElo "2358"]
[BlackElo "2731"]
[TimeControl "180+2"]
[EndTime "13:07:03 PST"]
[Termination "Gabrielian_Artur won by resignation"]

1. e4 {[%clk 0:03:01.9]} 1... c5 {[%clk 0:03:00.2]} 2. Nc3 {[%clk 0:03:02.1]}
2... d6 {[%clk 0:03:00.7]} 3. Bc4 {[%clk 0:02:58.1]} 3... Nf6 {[%clk 0:03:00.5]}
4. d3 {[%clk 0:02:58.3]} 4... e6 {[%clk 0:03:00.2]} 5. Bg5 {[%clk 0:02:43.2]}
5... Be7 {[%clk 0:03:01.2]} 6. f4 {[%clk 0:02:40.1]} 6... Nc6 {[%clk 0:03:02.1]}
7. Nf3 {[%clk 0:02:40.7]} 7... h6 {[%clk 0:03:02.4]} 8. Bxf6 {[%clk 0:02:22.6]}
8... Bxf6 {[%clk 0:03:02.9]} 9. O-O {[%clk 0:02:14.7]} 9... O-O {[%clk 0:03:03]}
10. a4 {[%clk 0:02:08]} 10... Nd4 {[%clk 0:03:02.6]} 11. Kh1 {[%clk 0:01:55.2]}
11... Nxf3 {[%clk 0:02:59.3]} 12. Qxf3 {[%clk 0:01:55.7]} 12... Bd7 {[%clk
0:03:00.4]} 13. f5 {[%clk 0:01:42.6]} 13... Qe7 {[%clk 0:02:56.4]} 14. Rae1
{[%clk 0:01:42.3]} 14... Kh8 {[%clk 0:02:55.3]} 15. Nd1 {[%clk 0:01:29.1]} 15...
Bxa4 {[%clk 0:02:47.9]} 16. Ne3 {[%clk 0:01:29.3]} 16... Bc6 {[%clk 0:02:31.7]}
17. Qh3 {[%clk 0:01:28.9]} 17... b5 {[%clk 0:02:20.7]} 18. Ba2 {[%clk
0:01:26.4]} 18... c4 {[%clk 0:02:20.9]} 19. dxc4 {[%clk 0:01:22.7]} 19... Bxe4
{[%clk 0:02:21.5]} 20. cxb5 {[%clk 0:01:20.4]} 20... Bg5 {[%clk 0:02:01.5]} 21.
Nd5 {[%clk 0:01:02.5]} 21... exd5 {[%clk 0:01:46.5]} 22. Bxd5 {[%clk 0:01:02.7]}
22... Bxd5 {[%clk 0:01:22.8]} 23. Rxe7 {[%clk 0:01:03.4]} 23... Bxe7 {[%clk
0:01:23.7]} 24. f6 {[%clk 0:00:51.3]} 24... Bxf6 {[%clk 0:01:24.7]} 25. Rxf6
{[%clk 0:00:43.1]} 25... gxf6 {[%clk 0:01:25.4]} 26. Qxh6+ {[%clk 0:00:44.1]}
26... Kg8 {[%clk 0:01:26.7]} 27. Qxf6 {[%clk 0:00:45.2]} 27... Rfe8 {[%clk
0:01:21.8]} 28. Qg5+ {[%clk 0:00:43.3]} 28... Kf8 {[%clk 0:01:22.5]} 29. h4
{[%clk 0:00:38.4]} 29... Re5 {[%clk 0:01:12.3]} 30. Qf6 {[%clk 0:00:36.6]} 30...
Rae8 {[%clk 0:01:12.6]} 31. Qxd6+ {[%clk 0:00:36]} 31... Kg7 {[%clk 0:01:13.3]}
32. h5 {[%clk 0:00:32.8]} 32... R8e6 {[%clk 0:01:13.8]} 33. Qd8 {[%clk
0:00:31.8]} 33... Rxh5+ {[%clk 0:01:14.1]} 34. Kg1 {[%clk 0:00:32.8]} 34... Rg6
{[%clk 0:01:15.2]} 0-1

[Event "*** Titled Tuesday Blitz"]
[Site "Chess.com"]
[Date "2019.03.05"]
[Round "1"]
[White "MatthewG-p4p"]
[Black "BasilSmash"]
[Result "1-0"]
[WhiteElo "2673"]
[BlackElo "2305"]
[TimeControl "180+2"]
[EndTime "13:07:04 PST"]
[Termination "MatthewG-p4p won by resignation"]

1. c4 {[%clk 0:02:58.7]} 1... e6 {[%clk 0:03:00.4]} 2. Nf3 {[%clk 0:02:55.5]}
2... d5 {[%clk 0:03:00.8]} 3. g3 {[%clk 0:02:56.8]} 3... Nf6 {[%clk 0:02:59.7]}
4. b3 {[%clk 0:02:57.6]} 4... Be7 {[%clk 0:02:58.5]} 5. Bb2 {[%clk 0:02:58.3]}
5... O-O {[%clk 0:02:59.5]} 6. Bg2 {[%clk 0:02:59.8]} 6... c5 {[%clk 0:03:00]}
7. e3 {[%clk 0:02:59.9]} 7... b6 {[%clk 0:02:59]} 8. O-O {[%clk 0:03:00.6]} 8...
Nc6 {[%clk 0:02:53]} 9. Nc3 {[%clk 0:02:53.3]} 9... Ba6 {[%clk 0:02:52.5]} 10.
d3 {[%clk 0:02:38.1]} 10... Qd7 {[%clk 0:02:48.8]} 11. Qe2 {[%clk 0:02:36.4]}
11... Rfd8 {[%clk 0:02:48.8]} 12. Rfd1 {[%clk 0:02:31.9]} 12... Rac8 {[%clk
0:02:48.8]} 13. Rac1 {[%clk 0:02:30.1]} 13... Qb7 {[%clk 0:02:48.6]} 14. h3
{[%clk 0:02:30.4]} 14... Qa8 {[%clk 0:02:43.2]} 15. g4 {[%clk 0:02:28.3]} 15...
h6 {[%clk 0:02:43.8]} 16. g5 {[%clk 0:02:15.1]} 16... hxg5 {[%clk 0:02:43]} 17.
Nxg5 {[%clk 0:02:17]} 17... Bb7 {[%clk 0:02:41.1]} 18. cxd5 {[%clk 0:02:13.7]}
18... exd5 {[%clk 0:02:40.8]} 19. d4 {[%clk 0:02:11.5]} 19... cxd4 {[%clk
0:02:30.2]} 20. exd4 {[%clk 0:02:13.4]} 20... Re8 {[%clk 0:02:15.8]} 21. Qd3
{[%clk 0:02:11.3]} 21... Nb4 {[%clk 0:02:05.5]} 22. Qf5 {[%clk 0:02:09.9]} 22...
g6 {[%clk 0:02:05.1]} 23. Qf4 {[%clk 0:02:05.7]} 23... Qb8 {[%clk 0:02:01.3]}
24. Qxb8 {[%clk 0:02:00.1]} 24... Rxb8 {[%clk 0:02:03.2]} 25. a3 {[%clk
0:02:01]} 25... Nc6 {[%clk 0:01:57.7]} 26. h4 {[%clk 0:01:27.8]} 26... Na5
{[%clk 0:01:57.4]} 27. Nb5 {[%clk 0:01:21.3]} 27... Nxb3 {[%clk 0:01:33.3]} 28.
Rc3 {[%clk 0:01:13.5]} 28... Na5 {[%clk 0:01:26.6]} 29. Re1 {[%clk 0:01:12.5]}
29... Nc4 {[%clk 0:01:20]} 30. Bc1 {[%clk 0:01:08.9]} 30... a6 {[%clk
0:01:13.8]} 31. Nc7 {[%clk 0:01:09.2]} 31... Bd6 {[%clk 0:00:40.7]} 32. Nxe8
{[%clk 0:01:08.8]} 32... Rxe8 {[%clk 0:00:39.4]} 33. Rxe8+ {[%clk 0:01:08.6]}
33... Nxe8 {[%clk 0:00:41.3]} 34. Rxc4 {[%clk 0:01:07.4]} 34... dxc4 {[%clk
0:00:35.9]} 35. Bxb7 {[%clk 0:01:09.3]} 35... a5 {[%clk 0:00:36.2]} 36. Bd5
{[%clk 0:01:10.6]} 1-0

[Event "*** Titled Tuesday Blitz"]
[Site "Chess.com"]
[Date "2019.03.05"]
[Round "1"]
[White "Sajkochess"]
[Black "jbj"]
[Result "0-1"]
[WhiteElo "2226"]
[BlackElo "2584"]
[TimeControl "180+2"]
[EndTime "13:07:07 PST"]
[Termination "jbj won by resignation"]

1. e4 {[%clk 0:02:56.7]} 1... d6 {[%clk 0:03:00.3]} 2. d4 {[%clk 0:02:57.3]}
2... Nf6 {[%clk 0:03:01.5]} 3. Nc3 {[%clk 0:02:58.3]} 3... Nbd7 {[%clk
0:03:02.6]} 4. Nf3 {[%clk 0:02:58.4]} 4... e5 {[%clk 0:03:03]} 5. Rg1 {[%clk
0:02:56.9]} 5... c6 {[%clk 0:02:46.3]} 6. g4 {[%clk 0:02:56.7]} 6... h6 {[%clk
0:02:47.1]} 7. h4 {[%clk 0:02:56.5]} 7... exd4 {[%clk 0:02:42.2]} 8. Nxd4 {[%clk
0:02:47.5]} 8... Nc5 {[%clk 0:02:40.1]} 9. f3 {[%clk 0:01:51.4]} 9... Nxg4
{[%clk 0:02:38.4]} 10. fxg4 {[%clk 0:01:45.6]} 10... Qxh4+ {[%clk 0:02:38.8]}
11. Kd2 {[%clk 0:01:35]} 11... Qg5+ {[%clk 0:02:27.2]} 12. Ke1 {[%clk
0:01:29.8]} 12... Qh4+ {[%clk 0:02:28]} 13. Kd2 {[%clk 0:01:29.3]} 13... Qf2+
{[%clk 0:02:29]} 14. Nde2 {[%clk 0:01:17.6]} 14... Be7 {[%clk 0:02:29.7]} 15.
Qe1 {[%clk 0:01:08.8]} 15... Bg5+ {[%clk 0:02:03.2]} 16. Kd1 {[%clk 0:01:09.3]}
16... Qf6 {[%clk 0:02:03.7]} 17. Bxg5 {[%clk 0:01:07.3]} 17... hxg5 {[%clk
0:02:04.6]} 18. Qg3 {[%clk 0:00:55.3]} 18... Rh4 {[%clk 0:02:03.6]} 19. Bh3
{[%clk 0:00:43.5]} 19... Be6 {[%clk 0:02:03.3]} 20. Kd2 {[%clk 0:00:42.7]} 20...
O-O-O {[%clk 0:02:01.7]} 21. Raf1 {[%clk 0:00:42.6]} 21... Qg6 {[%clk
0:01:54.4]} 22. Qf3 {[%clk 0:00:29.9]} 22... d5 {[%clk 0:01:36.1]} 23. e5 {[%clk
0:00:29.7]} 23... Ne4+ {[%clk 0:01:34.9]} 24. Kc1 {[%clk 0:00:29]} 24... Rdh8
{[%clk 0:01:25.1]} 25. Rh1 {[%clk 0:00:18.6]} 25... Nxc3 {[%clk 0:01:23.3]} 26.
Nxc3 {[%clk 0:00:19.5]} 26... d4 {[%clk 0:01:23.2]} 27. Ne4 {[%clk 0:00:20.1]}
27... Bd5 {[%clk 0:01:24.4]} 28. Nd6+ {[%clk 0:00:20.2]} 28... Kb8 {[%clk
0:01:23.3]} 29. Qg3 {[%clk 0:00:20.1]} 29... Bxh1 {[%clk 0:01:22.4]} 30. Rxh1
{[%clk 0:00:22]} 30... Qe6 {[%clk 0:01:20.3]} 31. Qf3 {[%clk 0:00:21.2]} 31...
f6 {[%clk 0:01:17.5]} 32. Bg2 {[%clk 0:00:22.1]} 32... Rxh1+ {[%clk 0:01:17.4]}
33. Bxh1 {[%clk 0:00:24]} 33... Qxe5 {[%clk 0:01:16.4]} 34. b3 {[%clk
0:00:20.7]} 34... Qxd6 {[%clk 0:01:16.1]} 35. Bg2 {[%clk 0:00:21.1]} 35... Qf4+
{[%clk 0:01:15]} 0-1

[Event "*** Titled Tuesday Blitz"]
[Site "Chess.com"]
[Date "2019.03.05"]
[Round "1"]
[White "AdrianaNikolova"]
[Black "DanielNaroditsky"]
[Result "0-1"]
[WhiteElo "2449"]
[BlackElo "2989"]
[TimeControl "180+2"]
[EndTime "13:07:14 PST"]
[Termination "DanielNaroditsky won on time"]

1. e4 {[%clk 0:02:58.3]} 1... e5 {[%clk 0:03:00.9]} 2. Nf3 {[%clk 0:02:59]} 2...
Nc6 {[%clk 0:03:02.6]} 3. Nc3 {[%clk 0:02:51.5]} 3... Nf6 {[%clk 0:03:03.6]} 4.
Bb5 {[%clk 0:02:53]} 4... Nd4 {[%clk 0:03:04.6]} 5. Nxd4 {[%clk 0:02:53.1]} 5...
exd4 {[%clk 0:03:06.5]} 6. e5 {[%clk 0:02:55]} 6... dxc3 {[%clk 0:03:07.9]} 7.
exf6 {[%clk 0:02:56.1]} 7... Qxf6 {[%clk 0:03:09.8]} 8. dxc3 {[%clk 0:02:57.3]}
8... Bc5 {[%clk 0:03:11.5]} 9. O-O {[%clk 0:02:56.4]} 9... O-O {[%clk
0:03:12.4]} 10. Bd3 {[%clk 0:02:55.8]} 10... d6 {[%clk 0:03:13]} 11. Qh5 {[%clk
0:02:54.9]} 11... g6 {[%clk 0:03:13.7]} 12. Qh6 {[%clk 0:02:51.2]} 12... Re8
{[%clk 0:03:13.2]} 13. Bg5 {[%clk 0:02:50.8]} 13... Qg7 {[%clk 0:03:14.6]} 14.
Qh4 {[%clk 0:02:50]} 14... f5 {[%clk 0:02:47.6]} 15. Rae1 {[%clk 0:02:04.5]}
15... Be6 {[%clk 0:02:40.1]} 16. Bf6 {[%clk 0:01:44.1]} 16... Qf7 {[%clk
0:02:41]} 17. b3 {[%clk 0:01:40.6]} 17... c6 {[%clk 0:02:40.5]} 18. Re2 {[%clk
0:01:28.9]} 18... Bd5 {[%clk 0:02:35.3]} 19. Rfe1 {[%clk 0:00:49.1]} 19... Rxe2
{[%clk 0:02:36.3]} 20. Rxe2 {[%clk 0:00:50.8]} 20... Re8 {[%clk 0:02:37.6]} 21.
h3 {[%clk 0:00:39.7]} 21... Rxe2 {[%clk 0:02:27.5]} 22. Bxe2 {[%clk 0:00:41.6]}
22... Qe6 {[%clk 0:02:27.1]} 23. Kf1 {[%clk 0:00:38.2]} 23... Bxg2+ {[%clk
0:02:21]} 24. Kxg2 {[%clk 0:00:40.1]} 24... Qxe2 {[%clk 0:02:22.2]} 25. Bd4
{[%clk 0:00:38.9]} 25... Bxd4 {[%clk 0:02:10.2]} 26. cxd4 {[%clk 0:00:40.8]}
26... Qe4+ {[%clk 0:02:09.9]} 27. Qxe4 {[%clk 0:00:37.1]} 27... fxe4 {[%clk
0:02:11.8]} 28. Kg3 {[%clk 0:00:36.1]} 28... d5 {[%clk 0:01:37.3]} 29. Kf4
{[%clk 0:00:38]} 29... h5 {[%clk 0:01:38.7]} 30. h4 {[%clk 0:00:06.9]} 30... Kf7
{[%clk 0:01:36.6]} 31. c4 {[%clk 0:00:05.5]} 31... Kf6 {[%clk 0:01:36.8]} 32.
cxd5 {[%clk 0:00:05.5]} 32... cxd5 {[%clk 0:01:38.7]} 33. b4 {[%clk 0:00:07.4]}
33... b5 {[%clk 0:01:38.3]} 34. a3 {[%clk 0:00:07.8]} 34... a6 {[%clk 0:01:40]}
35. Kg3 {[%clk 0:00:05.9]} 35... Kf5 {[%clk 0:01:40]} 36. f3 {[%clk 0:00:05.1]}
36... e3 {[%clk 0:01:40.7]} 37. f4 {[%clk 0:00:06.4]} 37... Ke4 {[%clk
0:01:41.7]} 38. f5 {[%clk 0:00:07]} 38... gxf5 {[%clk 0:01:42.6]} 0-1

[Event "*** Titled Tuesday Blitz"]
[Site "Chess.com"]
[Date "2019.03.05"]
[Round "1"]
[White "SaraciNderim"]
[Black "Cryptinz"]
[Result "1-0"]
[WhiteElo "2727"]
[BlackElo "2355"]
[TimeControl "180+2"]
[EndTime "13:07:15 PST"]
[Termination "SaraciNderim won by resignation"]

1. d4 {[%clk 0:02:58.3]} 1... d5 {[%clk 0:02:59.7]} 2. c4 {[%clk 0:02:59]} 2...
c6 {[%clk 0:03:00.7]} 3. Nc3 {[%clk 0:02:59.8]} 3... Nf6 {[%clk 0:03:01.4]} 4.
Nf3 {[%clk 0:03:00.5]} 4... dxc4 {[%clk 0:03:02.6]} 5. a4 {[%clk 0:03:00.6]}
5... Bf5 {[%clk 0:03:02.8]} 6. Ne5 {[%clk 0:02:59.2]} 6... Nbd7 {[%clk
0:03:03.1]} 7. Nxc4 {[%clk 0:02:55.4]} 7... Nb6 {[%clk 0:03:03.6]} 8. Ne5 {[%clk
0:02:56.6]} 8... a5 {[%clk 0:03:02.8]} 9. g3 {[%clk 0:02:54]} 9... Nfd7 {[%clk
0:02:58.7]} 10. Nxd7 {[%clk 0:02:41.9]} 10... Nxd7 {[%clk 0:02:59.6]} 11. Bg2
{[%clk 0:02:42.7]} 11... e6 {[%clk 0:02:59.9]} 12. O-O {[%clk 0:02:42.3]} 12...
Bb4 {[%clk 0:03:00.2]} 13. e4 {[%clk 0:02:42.9]} 13... Bg6 {[%clk 0:03:00.5]}
14. d5 {[%clk 0:02:31.3]} 14... cxd5 {[%clk 0:02:35.6]} 15. exd5 {[%clk
0:02:25.6]} 15... Nc5 {[%clk 0:02:35.3]} 16. dxe6 {[%clk 0:02:18.8]} 16... Qxd1
{[%clk 0:02:17.2]} 17. exf7+ {[%clk 0:02:18.9]} 17... Bxf7 {[%clk 0:02:06.2]}
18. Rxd1 {[%clk 0:02:19.4]} 18... O-O {[%clk 0:01:54.4]} 19. Be3 {[%clk
0:02:08.3]} 19... Bb3 {[%clk 0:01:42.7]} 20. Bd5+ {[%clk 0:01:57.9]} 20... Bxd5
{[%clk 0:01:33]} 21. Rxd5 {[%clk 0:01:46.4]} 21... Bxc3 {[%clk 0:01:22.5]} 22.
Bxc5 {[%clk 0:01:34.2]} 22... Bb4 {[%clk 0:01:04.6]} 23. Bxf8 {[%clk 0:01:31.1]}
23... Rxf8 {[%clk 0:01:06.5]} 24. Rad1 {[%clk 0:01:30.6]} 24... Rf3 {[%clk
0:01:04.8]} 25. R1d3 {[%clk 0:01:29.6]} 25... Rf6 {[%clk 0:00:59.5]} 26. Rd8+
{[%clk 0:01:28.7]} 26... Kf7 {[%clk 0:01:00.1]} 27. R3d7+ {[%clk 0:01:24.5]}
27... Kg6 {[%clk 0:00:55.9]} 28. Rg8 {[%clk 0:01:20.1]} 28... Bf8 {[%clk
0:00:50.1]} 29. Rxb7 {[%clk 0:01:16.9]} 29... h5 {[%clk 0:00:49.1]} 30. h4
{[%clk 0:01:05.5]} 30... Kf5 {[%clk 0:00:34.3]} 31. Rb5+ {[%clk 0:01:02]} 31...
Ke4 {[%clk 0:00:34.8]} 32. Rxa5 {[%clk 0:01:01.1]} 32... Bb4 {[%clk 0:00:34.5]}
33. Rb5 {[%clk 0:00:53.5]} 33... Be1 {[%clk 0:00:35.3]} 34. Re8+ {[%clk
0:00:54.4]} 1-0

[Event "*** Titled Tuesday Blitz"]
[Site "Chess.com"]
[Date "2019.03.05"]
[Round "1"]
[White "silverback96"]
[Black "Gr3egor"]
[Result "0-1"]
[WhiteElo "2088"]
[BlackElo "2503"]
[TimeControl "180+2"]
[EndTime "13:07:17 PST"]
[Termination "Gr3egor won by resignation"]

1. d4 {[%clk 0:02:59.7]} 1... Nf6 {[%clk 0:03:00.8]} 2. c4 {[%clk 0:03:01.6]}
2... e6 {[%clk 0:03:02.1]} 3. g3 {[%clk 0:03:02.8]} 3... c5 {[%clk 0:03:02.7]}
4. d5 {[%clk 0:03:03.4]} 4... exd5 {[%clk 0:03:04.6]} 5. cxd5 {[%clk 0:03:04.4]}
5... d6 {[%clk 0:03:06.1]} 6. Nc3 {[%clk 0:03:05.6]} 6... g6 {[%clk 0:03:03.6]}
7. Nf3 {[%clk 0:03:06.3]} 7... Bg7 {[%clk 0:03:05]} 8. Bg2 {[%clk 0:03:08.2]}
8... O-O {[%clk 0:03:06.6]} 9. O-O {[%clk 0:03:10.1]} 9... Re8 {[%clk
0:03:08.3]} 10. Bf4 {[%clk 0:03:10.9]} 10... Ne4 {[%clk 0:03:09.8]} 11. Nxe4
{[%clk 0:03:11.4]} 11... Rxe4 {[%clk 0:03:11.7]} 12. Nd2 {[%clk 0:03:13.3]}
12... Rxf4 {[%clk 0:03:13.3]} 13. gxf4 {[%clk 0:03:14.4]} 13... b5 {[%clk
0:03:15]} 14. Rb1 {[%clk 0:03:05]} 14... a5 {[%clk 0:03:14.3]} 15. a3 {[%clk
0:02:51.6]} 15... c4 {[%clk 0:03:08.8]} 16. a4 {[%clk 0:02:48.6]} 16... Ba6
{[%clk 0:03:09.8]} 17. axb5 {[%clk 0:02:49.3]} 17... Bxb5 {[%clk 0:03:11.7]} 18.
Qc2 {[%clk 0:02:44.6]} 18... Nd7 {[%clk 0:03:13.1]} 19. Nxc4 {[%clk 0:02:36.4]}
19... Rc8 {[%clk 0:03:13.7]} 20. b3 {[%clk 0:02:37.6]} 20... a4 {[%clk
0:03:14.4]} 21. Qd1 {[%clk 0:02:28.1]} 21... Bxc4 {[%clk 0:03:11.8]} 22. bxc4
{[%clk 0:02:28]} 22... Rxc4 {[%clk 0:03:13.7]} 23. e3 {[%clk 0:02:26]} 23... Nc5
{[%clk 0:03:13.9]} 24. Qe2 {[%clk 0:02:24]} 24... Rc3 {[%clk 0:03:13.7]} 25.
Rfc1 {[%clk 0:02:17.2]} 25... Qa5 {[%clk 0:03:14.1]} 26. Rxc3 {[%clk 0:02:16.9]}
26... Bxc3 {[%clk 0:03:16]} 27. Qc4 {[%clk 0:02:08.7]} 27... a3 {[%clk
0:03:06.9]} 28. Qa2 {[%clk 0:02:08.7]} 28... Bb2 {[%clk 0:02:55.3]} 29. Rxb2
{[%clk 0:01:57.3]} 29... axb2 {[%clk 0:02:52]} 30. Qxa5 {[%clk 0:01:55.2]} 30...
b1=Q+ {[%clk 0:02:52.9]} 31. Bf1 {[%clk 0:01:56.2]} 31... Ne4 {[%clk 0:02:48.2]}
32. f3 {[%clk 0:01:30.9]} 32... Nf6 {[%clk 0:02:30.2]} 33. Qd8+ {[%clk
0:01:29.1]} 33... Kg7 {[%clk 0:02:32.1]} 34. Qxd6 {[%clk 0:01:30.9]} 34... Qd1
{[%clk 0:02:33.3]} 35. Kf2 {[%clk 0:01:24.2]} 35... Nxd5 {[%clk 0:02:32.6]} 36.
Be2 {[%clk 0:01:24]} 36... Qd2 {[%clk 0:02:32.2]} 37. Qe5+ {[%clk 0:01:11.5]}
37... f6 {[%clk 0:02:32.7]} 38. Qe6 {[%clk 0:01:06.5]} 38... Nc3 {[%clk
0:02:28.3]} 39. Qc4 {[%clk 0:01:01.2]} 39... Nd1+ {[%clk 0:02:28.8]} 40. Kg3
{[%clk 0:00:55.1]} 40... Qe1+ {[%clk 0:02:29.9]} 41. Kh3 {[%clk 0:00:49.1]}
41... Nxe3 {[%clk 0:02:22.9]} 42. Qa2 {[%clk 0:00:22.4]} 42... Qf2 {[%clk
0:02:18.8]} 43. Qa7+ {[%clk 0:00:16]} 43... Kh6 {[%clk 0:02:19.1]} 44. Qa2
{[%clk 0:00:12.4]} 44... Qg2+ {[%clk 0:02:18.8]} 0-1

[Event "*** Titled Tuesday Blitz"]
[Site "Chess.com"]
[Date "2019.03.05"]
[Round "1"]
[White "NateSolon"]
[Black "quesfr"]
[Result "1-0"]
[WhiteElo "2580"]
[BlackElo "2223"]
[TimeControl "180+2"]
[EndTime "13:07:21 PST"]
[Termination "NateSolon won on time"]

1. d4 {[%clk 0:03:01.9]} 1... d5 {[%clk 0:02:59.7]} 2. c4 {[%clk 0:03:00.7]}
2... e6 {[%clk 0:02:59.5]} 3. Nc3 {[%clk 0:03:01.5]} 3... Nf6 {[%clk 0:02:59.6]}
4. cxd5 {[%clk 0:03:02.1]} 4... exd5 {[%clk 0:03:00.5]} 5. Bg5 {[%clk
0:03:02.7]} 5... c6 {[%clk 0:03:01.3]} 6. e3 {[%clk 0:03:03.6]} 6... Be7 {[%clk
0:03:01.8]} 7. Bd3 {[%clk 0:03:04.2]} 7... Nbd7 {[%clk 0:03:02.5]} 8. Nge2
{[%clk 0:03:03.8]} 8... h6 {[%clk 0:03:03.3]} 9. Bh4 {[%clk 0:03:02.3]} 9... Nh5
{[%clk 0:03:03.8]} 10. Bxe7 {[%clk 0:03:01]} 10... Qxe7 {[%clk 0:03:05.2]} 11.
g4 {[%clk 0:02:53.4]} 11... Nhf6 {[%clk 0:02:55.6]} 12. Ng3 {[%clk 0:02:54.3]}
12... Nb6 {[%clk 0:02:49.3]} 13. h3 {[%clk 0:02:50.8]} 13... g6 {[%clk
0:02:42.4]} 14. Qc2 {[%clk 0:02:31.3]} 14... Bd7 {[%clk 0:02:42]} 15. O-O-O
{[%clk 0:02:28.4]} 15... O-O-O {[%clk 0:02:40.4]} 16. Kb1 {[%clk 0:02:27.4]}
16... Kb8 {[%clk 0:02:41.2]} 17. Rhe1 {[%clk 0:02:21.3]} 17... Bc8 {[%clk
0:02:01.1]} 18. f3 {[%clk 0:02:22.3]} 18... Qc7 {[%clk 0:01:47.2]} 19. Qf2
{[%clk 0:02:06]} 19... a6 {[%clk 0:01:41.6]} 20. e4 {[%clk 0:02:02.9]} 20... Qf4
{[%clk 0:00:44.2]} 21. e5 {[%clk 0:01:50.2]} 21... Nfd7 {[%clk 0:00:33.4]} 22.
Nge2 {[%clk 0:01:44.5]} 22... Qg5 {[%clk 0:00:32.3]} 23. f4 {[%clk 0:01:44.8]}
23... Qe7 {[%clk 0:00:33.3]} 24. f5 {[%clk 0:01:45.7]} 24... Nf8 {[%clk
0:00:25.6]} 25. Nf4 {[%clk 0:01:44.8]} 25... Qg5 {[%clk 0:00:16.9]} 26. h4
{[%clk 0:01:38.2]} 26... Qe7 {[%clk 0:00:05.4]} 27. Rg1 {[%clk 0:01:11.1]} 27...
gxf5 {[%clk 0:00:05.8]} 28. gxf5 {[%clk 0:01:12.4]} 28... Qc7 {[%clk 0:00:02.3]}
29. Rg7 {[%clk 0:01:09.4]} 29... c5 {[%clk 0:00:02.2]} 30. e6 {[%clk 0:00:57.4]}
30... cxd4 {[%clk 0:00:03]} 31. Qxd4 {[%clk 0:00:56.8]} 1-0

[Event "*** Titled Tuesday Blitz"]
[Site "Chess.com"]
[Date "2019.03.05"]
[Round "1"]
[White "GMMatamoros"]
[Black "Orest_Vovk"]
[Result "1-0"]
[WhiteElo "2532"]
[BlackElo "2146"]
[TimeControl "180+2"]
[EndTime "13:07:24 PST"]
[Termination "GMMatamoros won by resignation"]

1. Nf3 {[%clk 0:03:01.7]} 1... Nf6 {[%clk 0:02:59.1]} 2. c4 {[%clk 0:03:02.4]}
2... c5 {[%clk 0:02:58.8]} 3. Nc3 {[%clk 0:03:01.4]} 3... b6 {[%clk 0:02:59.3]}
4. e3 {[%clk 0:02:59.5]} 4... Bb7 {[%clk 0:03:00.1]} 5. d4 {[%clk 0:03:01]} 5...
e6 {[%clk 0:02:59.3]} 6. d5 {[%clk 0:03:02.1]} 6... Bd6 {[%clk 0:02:55]} 7. e4
{[%clk 0:02:49.7]} 7... exd5 {[%clk 0:02:27.9]} 8. e5 {[%clk 0:02:36.5]} 8...
Qe7 {[%clk 0:02:27.3]} 9. Qe2 {[%clk 0:02:32.1]} 9... d4 {[%clk 0:02:28.1]} 10.
Nb5 {[%clk 0:02:32.1]} 10... Bxf3 {[%clk 0:02:14.3]} 11. Nxd6+ {[%clk
0:02:25.7]} 11... Qxd6 {[%clk 0:02:01.8]} 12. gxf3 {[%clk 0:02:19.9]} 12... Qe6
{[%clk 0:01:55.4]} 13. exf6 {[%clk 0:02:13.3]} 13... gxf6 {[%clk 0:01:57.3]} 14.
Bh3 {[%clk 0:02:02.5]} 14... Qxe2+ {[%clk 0:01:56.5]} 15. Kxe2 {[%clk
0:02:02.8]} 15... Nc6 {[%clk 0:01:56.9]} 16. f4 {[%clk 0:01:37]} 16... O-O-O
{[%clk 0:01:56.6]} 17. a3 {[%clk 0:01:37.8]} 17... Na5 {[%clk 0:01:41]} 18. Kd3
{[%clk 0:01:19.2]} 18... Nb3 {[%clk 0:01:40.5]} 19. Rb1 {[%clk 0:01:19]} 19...
Kc7 {[%clk 0:01:20.8]} 20. Bg2 {[%clk 0:01:11.7]} 20... f5 {[%clk 0:01:08.6]}
21. Bd5 {[%clk 0:01:11.9]} 21... Rhg8 {[%clk 0:01:03.4]} 22. Kc2 {[%clk
0:01:11.2]} 22... Na5 {[%clk 0:01:00.1]} 23. b4 {[%clk 0:01:09.1]} 23... Nc6
{[%clk 0:01:00.7]} 24. Bd2 {[%clk 0:01:02.5]} 24... Ne7 {[%clk 0:00:44.8]} 25.
bxc5 {[%clk 0:01:02.5]} 25... bxc5 {[%clk 0:00:43.6]} 26. Ba5+ {[%clk
0:00:58.6]} 26... Kd6 {[%clk 0:00:44.7]} 27. Bxf7 {[%clk 0:00:55.2]} 27... Nc6
{[%clk 0:00:40]} 28. Bxd8 {[%clk 0:00:51.2]} 28... Rxd8 {[%clk 0:00:40.4]} 29.
Rhg1 {[%clk 0:00:50.3]} 29... Rf8 {[%clk 0:00:37.2]} 30. Rg7 {[%clk 0:00:50.6]}
30... h6 {[%clk 0:00:33.6]} 31. Re1 {[%clk 0:00:49]} 31... Rb8 {[%clk
0:00:32.5]} 32. Bd5 {[%clk 0:00:49.5]} 32... Na5 {[%clk 0:00:32.5]} 33. Ree7
{[%clk 0:00:48.7]} 33... Rd8 {[%clk 0:00:28.9]} 34. Ref7 {[%clk 0:00:49.9]} 1-0